fUSD/lending_fUSD_20251109
["ID","MTS","AMOUNT","RATE_DAILY","PERIOD"]
[393424079,1762648256459,-2378.4311363,0.00045,120]
[393424080,1762648256492,-9019.0,0.00045,120]
[393424081,1762648256521,-7571.66018451,0.00045,120]
[393424082,1762648256551,-970.42636,0.00045,120]
[393424083,1762648256580,-300.0,0.00045,60]
[393424084,1762648256611,-156403.0,0.00045,120]
[393424085,1762648256644,-1000000.0,0.00045,120]
[393424086,1762648256677,-1339.0,0.00045,120]
[393424087,1762648256710,-20000.0,0.00045,120]
[393424088,1762648256740,-10048.2,0.00045,120]
[393424089,1762648256767,-3403.0,0.00045,120]
[393424090,1762648256795,-474.17685217,0.00045,120]
[393424091,1762648256826,-738759.97,0.00045,120]
[393424092,1762648256854,-403.0,0.00045,120]
[393424093,1762648256886,-1000000.0,0.00045,120]
[393424094,1762648256922,-4995.9924721,0.00045,120]
[393424095,1762648256951,-1114.68,0.00045,120]
[393424096,1762648256981,-2090.33473868,0.00045,120]
[393424097,1762648257015,-14906.01,0.00045,120]
[393424098,1762648257050,-1046984.05050706,0.00045,120]
[393424099,1762648267817,-727.0,0.00037839,20]
[393424100,1762648267851,-727.0,0.00038229,20]
[393424101,1762648267879,-1000.0,0.00038397,14]
[393424102,1762648267904,-1000.0,0.00038397,14]
[393424103,1762648267930,-1000.0,0.00038397,14]
[393424104,1762648267955,-1000.0,0.00038397,14]
[393424105,1762648267982,-1000.0,0.00038397,14]
[393424106,1762648268009,-1000.0,0.00038397,14]
[393424107,1762648268036,-1000.0,0.00038397,14]
[393424108,1762648268064,-727.0,0.00038619,20]
[393424109,1762648268092,-727.0,0.00039009,20]
[393424110,1762648268129,-727.0,0.00039399,20]
[393424111,1762648268156,-727.0,0.00039789,20]
[393424112,1762648268185,-727.0,0.0004018,20]
[393424113,1762648268212,-654.98526059,0.00043836,30]
[393424114,1762648268240,-809.60389469,0.0004475,120]
[393424115,1762648268270,-153015.94949294,0.00045,120]
[393424116,1762648268303,-154.0,0.00045,120]
[393424117,1762648268332,-6160.48,0.00045,120]
[393424118,1762648268361,-1000000.0,0.0004525,120]
[393424119,1762648268387,-456791.211,0.00045444,30]
[393424120,1762648268416,-1000000.0,0.000455,120]
[393424121,1762648268443,-152.0,0.000455,120]
[393424122,1762648268472,-1150000.0,0.000455,120]
[393424123,1762648268652,-1553.22,0.00045543,120]
[393424124,1762648268681,-500.0,0.00045678,60]
[393424125,1762648268709,-553.23135052,0.000457,120]
[393424126,1762648268738,-1000000.0,0.0004575,120]
[393424127,1762648268765,-1230.93930653,0.000459,120]
[393424128,1762648268792,-216335.37969473,0.00046,120]
[393424129,1762648327706,899.686119,7.945e-05,2]
[393424140,1762648429711,607.28,0.00039076,120]
[393424141,1762648430175,500.0,0.00039076,60]
[393424142,1762648430662,500.0,0.00039076,60]
[393424143,1762648430901,431.68,0.00039076,60]
[393424144,1762648442709,500.0,0.00039076,120]
[393424145,1762648442945,500.0,0.00039076,120]
[393424146,1762648443192,485.2,0.00039076,120]
[393424147,1762648447725,593.42,0.00039076,120]
[393424148,1762648453001,500.0,0.00039076,120]
[393424149,1762648453241,500.0,0.00039076,120]
[393424150,1762648453479,421.46,0.00039076,120]
[393424151,1762648455349,500.0,0.00039076,120]
[393424152,1762648455601,500.0,0.00039076,120]
[393424153,1762648455865,167.34,0.00039076,120]
[393424154,1762648474568,500.0,0.00039076,120]
[393424155,1762648474619,500.0,0.00039076,120]
[393424156,1762648474867,500.0,0.00039076,120]
[393424157,1762648475151,326.47,0.00039076,120]
[393424158,1762648480211,500.0,0.00039078,120]
[393424159,1762648480451,500.0,0.00039078,120]
[393424160,1762648480683,441.55,0.00039078,120]
[393424161,1762648486485,500.0,0.00039078,120]
[393424162,1762648486715,393.5,0.00039078,120]
[393424163,1762648492266,500.0,0.00039078,120]
[393424164,1762648492509,255.22281419,0.00039078,120]
[393424165,1762648497497,500.0,0.00039078,120]
[393424166,1762648497742,500.0,0.00039078,120]
[393424167,1762648498001,500.0,0.00039078,120]
[393424168,1762648498293,500.0,0.00039078,120]
[393424169,1762648498562,500.0,0.00039078,120]
[393424170,1762648499031,500.0,0.00039078,120]
[393424171,1762648499336,500.0,0.00039078,120]
[393424172,1762648499577,500.0,0.00039078,120]
[393424173,1762648499618,500.0,0.00039078,120]
[393424174,1762648500025,500.0,0.00039078,120]
[393424175,1762648500125,500.0,0.00039078,120]
[393424176,1762648500172,532.46,0.00039078,120]
[393424177,1762648500269,500.0,0.00039078,120]
[393424178,1762648500364,222.38,0.00039078,120]
[393424179,1762648500511,313.78,0.00039078,120]
[393424180,1762648504221,500.0,0.00039078,120]
[393424181,1762648504460,500.0,0.00039078,120]
[393424182,1762648504739,363.37,0.00039078,120]
[393424183,1762648510056,500.0,0.00039078,60]
[393424184,1762648510297,500.0,0.00039078,60]
[393424185,1762648510533,333.30436162,0.00039078,60]
[393424186,1762648512685,500.0,0.00039078,120]
[393424187,1762648513117,511.01000899,0.00039078,120]
[393424188,1762648517901,500.0,0.00039078,120]
[393424189,1762648518138,500.0,0.00039078,120]
[393424190,1762648518377,500.0,0.00039078,120]
[393424191,1762648518655,491.89,0.00039078,120]
[393424192,1762648520205,500.0,0.00039078,120]
[393424193,1762648520424,500.0,0.00039078,120]
[393424194,1762648520463,500.0,0.00039078,120]
[393424195,1762648520655,500.0,0.00039078,120]
[393424196,1762648520697,500.0,0.00039078,120]
[393424197,1762648520897,258.98917734,0.00039078,120]
[393424198,1762648520940,500.0,0.00039078,120]
[393424199,1762648521224,500.0,0.00039078,120]
[393424200,1762648521497,500.0,0.00039078,120]
[393424201,1762648521740,499.64,0.00039078,120]
[393424202,1762648525402,500.0,0.00039078,120]
[393424203,1762648525628,500.0,0.00039078,120]
[393424204,1762648525860,500.0,0.00039078,120]
[393424205,1762648526109,598.67,0.00039078,120]
[393424206,1762648529631,500.0,0.00039078,120]
[393424207,1762648530207,500.0,0.00039078,120]
[393424208,1762648530361,500.0,0.00039078,120]
[393424209,1762648530481,398.33,0.00039078,120]
[393424210,1762648530595,294.63,0.00039078,120]
[393424211,1762648539409,500.0,0.00039078,120]
[393424212,1762648539639,500.0,0.00039078,120]
[393424213,1762648539887,399.3987665,0.00039078,120]
[393424214,1762648542348,500.0,0.00039078,120]
[393424215,1762648542593,500.0,0.00039078,120]
[393424216,1762648542822,500.0,0.00039078,120]
[393424217,1762648543066,500.0,0.00039078,120]
[393424218,1762648543296,500.0,0.00039078,120]
[393424219,1762648543576,500.0,0.00039078,120]
[393424220,1762648543814,445.34,0.00039078,120]
[393424221,1762648546054,616.36,0.00039078,120]
[393424222,1762648549615,500.0,0.00039078,120]
[393424223,1762648549887,500.0,0.00039078,120]
[393424224,1762648550150,500.0,0.00039078,120]
[393424225,1762648550397,500.0,0.00039078,120]
[393424226,1762648550833,577.52,0.00039078,120]
[393424227,1762648553918,500.0,0.00039078,120]
[393424228,1762648554161,500.0,0.00039078,120]
[393424229,1762648554398,639.845429,0.00039078,120]
[393424230,1762648561935,587.29,0.00039078,120]
[393424231,1762648563347,500.0,0.00039078,120]
[393424232,1762648563635,648.76,0.00039078,120]
[393424233,1762648567528,500.0,0.00039078,120]
[393424234,1762648567772,500.0,0.00039078,120]
[393424235,1762648568013,271.35592696,0.00039078,120]
[393424236,1762648568792,611.64229393,0.00039078,120]
[393424237,1762648570690,588.4434527,0.00039078,120]
[393424238,1762648575747,581.66,0.00039078,120]
[393424239,1762648576098,-168.38,0.00016787,2]
[393424240,1762648576136,-250.26707738,0.00016838,2]
[393424241,1762648577761,500.0,0.00039078,120]
[393424242,1762648577983,182.19,0.00039078,120]
[393424243,1762648579179,-49.73292262,0.00016838,2]
[393424244,1762648579202,-170.54317457,0.00016889,2]
[393424245,1762648581853,500.0,0.00039078,120]
[393424246,1762648582095,500.0,0.00039078,120]
[393424247,1762648582297,500.0,0.00039078,120]
[393424248,1762648582344,500.0,0.00039078,120]
[393424249,1762648582541,278.02,0.00039078,120]
[393424250,1762648582581,476.37,0.00039078,120]
[393424251,1762648583204,500.0,0.00039078,120]
[393424252,1762648583444,500.0,0.00039078,120]
[393424253,1762648583684,500.0,0.00039078,120]
[393424254,1762648584096,500.0,0.00039078,120]
[393424255,1762648584357,431.19,0.00039078,120]
[393424256,1762648585579,500.0,0.00039078,120]
[393424257,1762648585813,500.0,0.00039078,120]
[393424258,1762648586081,284.18,0.00039078,120]
[393424259,1762648587154,618.00689,0.00039078,120]
[393424260,1762648588212,500.0,0.00039078,120]
[393424261,1762648588477,500.0,0.00039078,120]
[393424262,1762648588852,500.0,0.00039078,120]
[393424263,1762648588981,362.67,0.00039078,120]
[393424264,1762648589026,500.0,0.00039078,120]
[393424265,1762648589232,500.0,0.00039078,120]
[393424266,1762648589469,469.95125144,0.00039078,120]
[393424267,1762648597183,500.0,0.00039078,120]
[393424268,1762648597230,190.18,0.00039078,120]
[393424269,1762648598583,500.0,0.00039078,120]
[393424270,1762648598841,371.45,0.00039078,120]
[393424271,1762648600738,500.0,0.00039078,120]
[393424272,1762648600992,500.0,0.00039078,120]
[393424273,1762648601241,500.0,0.00039078,120]
[393424274,1762648601465,356.08,0.00039078,120]
[393424275,1762648602098,500.0,0.00039078,120]
[393424276,1762648602329,527.78,0.00039078,120]
[393424277,1762648602428,500.0,0.00039078,120]
[393424278,1762648602642,500.0,0.00039078,120]
[393424279,1762648602866,500.0,0.00039078,120]
[393424280,1762648603102,500.0,0.00039078,120]
[393424281,1762648603349,443.4,0.00039078,120]
[393424282,1762648605793,500.0,0.00039078,120]
[393424283,1762648606027,500.0,0.00039078,120]
[393424284,1762648606256,500.0,0.00039078,120]
[393424285,1762648606507,500.0,0.00039078,120]
[393424286,1762648606848,500.0,0.00039078,120]
[393424287,1762648607094,237.72209188,0.00039078,120]
[393424288,1762648607272,500.0,0.00039078,120]
[393424289,1762648607322,500.0,0.00039078,120]
[393424290,1762648607501,500.0,0.00039078,120]
[393424291,1762648607541,500.0,0.00039078,120]
[393424292,1762648607582,500.0,0.00039078,120]
[393424293,1762648607764,500.0,0.00039078,120]
[393424294,1762648607809,500.0,0.00039078,120]
[393424295,1762648607850,246.2,0.00039078,120]
[393424296,1762648608032,235.00972932,0.00039078,120]
[393424297,1762648608337,500.0,0.00039078,120]
[393424298,1762648608657,500.0,0.00039078,120]
[393424299,1762648608888,365.84,0.00039078,120]
[393424300,1762648609917,500.0,0.00039078,120]
[393424301,1762648610150,647.94,0.00039078,120]
[393424302,1762648612442,500.0,0.00039078,120]
[393424303,1762648612669,500.0,0.00039078,120]
[393424304,1762648612903,500.0,0.00039078,120]
[393424305,1762648612976,612.54233081,0.00039078,120]
[393424306,1762648613153,500.0,0.00039078,120]
[393424307,1762648613259,500.0,0.00039078,120]
[393424308,1762648613421,500.0,0.00039078,120]
[393424309,1762648613495,500.0,0.00039078,120]
[393424310,1762648613655,500.0,0.00039078,120]
[393424311,1762648613730,154.70323853,0.00039078,120]
[393424312,1762648613889,500.0,0.00039078,120]
[393424313,1762648614144,500.0,0.00039078,120]
[393424314,1762648614377,500.0,0.00039078,120]
[393424315,1762648614627,275.9,0.00039078,120]
[393424316,1762648614939,500.0,0.00039078,120]
[393424317,1762648615185,500.0,0.00039078,120]
[393424318,1762648615414,500.0,0.00039078,120]
[393424319,1762648615559,500.0,0.00039078,120]
[393424320,1762648615703,500.0,0.00039078,120]
[393424321,1762648615847,500.0,0.00039078,120]
[393424322,1762648615966,500.0,0.00039078,120]
[393424323,1762648616207,500.0,0.00039078,120]
[393424324,1762648616444,500.0,0.00039078,120]
[393424325,1762648616487,275.58682504,0.00039078,120]
[393424326,1762648616693,550.86,0.00039078,120]
[393424327,1762648619307,500.0,0.00039078,120]
[393424328,1762648619876,500.0,0.00039078,120]
[393424329,1762648620314,500.0,0.00039078,120]
[393424330,1762648620540,500.0,0.00039078,120]
[393424331,1762648620664,500.0,0.00039078,120]
[393424332,1762648620911,500.0,0.00039078,120]
[393424333,1762648621157,500.0,0.00039078,120]
[393424334,1762648621409,500.0,0.00039078,120]
[393424335,1762648621676,500.0,0.00039078,120]
[393424336,1762648621922,500.0,0.00039078,120]
[393424337,1762648622042,500.0,0.00039078,120]
[393424338,1762648622089,500.0,0.00039078,120]
[393424339,1762648622167,500.0,0.00039078,120]
[393424340,1762648622280,227.82201104,0.00039078,120]
[393424341,1762648622375,500.0,0.00039078,120]
[393424342,1762648622437,500.0,0.00039078,120]
[393424343,1762648622640,174.18314944,0.00039078,120]
[393424344,1762648622704,500.0,0.00039078,120]
[393424345,1762648623088,500.0,0.00039078,120]
[393424346,1762648623131,500.0,0.00039078,120]
[393424347,1762648623276,500.0,0.00039078,120]
[393424348,1762648623329,372.12,0.00039078,120]
[393424349,1762648623380,634.4343914,0.00039078,120]
[393424350,1762648623499,500.0,0.00039078,120]
[393424351,1762648623730,500.0,0.00039078,120]
[393424352,1762648623982,500.0,0.00039078,120]
[393424353,1762648624244,352.64205695,0.00039078,120]
[393424354,1762648625139,648.13,0.00039078,120]
[393424355,1762648625939,649.25137591,0.00039078,60]
[393424356,1762648627178,500.0,0.00039078,120]
[393424357,1762648627603,298.23691766,0.00039078,120]
[393424358,1762648627784,500.0,0.00039078,120]
[393424359,1762648628052,500.0,0.00039078,120]
[393424360,1762648628315,500.0,0.00039078,120]
[393424361,1762648628562,500.0,0.00039078,120]
[393424362,1762648628637,578.03,0.00039078,120]
[393424363,1762648628809,327.04,0.00039078,120]
[393424364,1762648630622,500.0,0.00039078,120]
[393424365,1762648630863,500.0,0.00039078,120]
[393424366,1762648631094,292.28,0.00039078,120]
[393424367,1762648632310,500.0,0.00039078,120]
[393424368,1762648632554,500.0,0.00039078,120]
[393424369,1762648632791,500.0,0.00039078,120]
[393424370,1762648633028,380.04,0.00039078,120]
[393424371,1762648633201,500.0,0.00039078,120]
[393424372,1762648633516,500.0,0.00039078,120]
[393424373,1762648633745,500.0,0.00039078,120]
[393424374,1762648633789,500.0,0.00039078,120]
[393424375,1762648633987,356.82215808,0.00039078,120]
[393424376,1762648634119,219.92,0.00039078,120]
[393424377,1762648637412,500.0,0.00039078,120]
[393424378,1762648637640,500.0,0.00039078,120]
[393424379,1762648637925,500.0,0.00039078,120]
[393424380,1762648638184,500.0,0.00039078,120]
[393424381,1762648638417,500.0,0.00039078,120]
[393424382,1762648638645,500.0,0.00039078,120]
[393424383,1762648638867,500.0,0.00039078,120]
[393424384,1762648639148,500.0,0.00039078,120]
[393424385,1762648639380,502.42,0.00039078,120]
[393424386,1762648639557,500.0,0.00039078,120]
[393424387,1762648639799,500.0,0.00039078,120]
[393424388,1762648639839,500.0,0.00039078,120]
[393424389,1762648640050,500.0,0.00039078,120]
[393424390,1762648640095,500.0,0.00039078,120]
[393424391,1762648640293,154.70290262,0.00039078,120]
[393424392,1762648640332,500.0,0.00039078,120]
[393424393,1762648640645,500.0,0.00039078,120]
[393424394,1762648640804,500.0,0.00039078,120]
[393424395,1762648641039,500.0,0.00039078,120]
[393424396,1762648641277,500.0,0.00039078,120]
[393424397,1762648641527,500.0,0.00039078,120]
[393424398,1762648641761,500.0,0.00039078,120]
[393424399,1762648641995,539.74,0.00039078,120]
[393424400,1762648644498,500.0,0.00039078,120]
[393424401,1762648644725,500.0,0.00039078,120]
[393424402,1762648644768,500.0,0.00039078,120]
[393424403,1762648644956,647.81214543,0.00039078,120]
[393424404,1762648645003,189.88,0.00039078,120]
[393424405,1762648646794,500.0,0.00039078,120]
[393424406,1762648646931,500.0,0.00039078,120]
[393424407,1762648647062,500.0,0.00039078,120]
[393424408,1762648647169,500.0,0.00039078,120]
[393424409,1762648647286,188.40545234,0.00039078,120]
[393424410,1762648647398,328.96414028,0.00039078,120]
[393424411,1762648648092,500.0,0.00039078,120]
[393424412,1762648648399,500.0,0.00039078,120]
[393424413,1762648648661,500.0,0.00039078,120]
[393424414,1762648648899,500.0,0.00039078,120]
[393424415,1762648649164,500.0,0.00039078,120]
[393424416,1762648649458,559.04087316,0.00039078,120]
[393424417,1762648651077,500.0,0.00039078,120]
[393424418,1762648651321,500.0,0.00039078,120]
[393424419,1762648651516,500.0,0.00039078,120]
[393424420,1762648651561,236.45207676,0.00039078,120]
[393424421,1762648651753,500.0,0.00039078,120]
[393424422,1762648651984,500.0,0.00039078,120]
[393424423,1762648652254,500.0,0.00039078,120]
[393424424,1762648652498,500.0,0.00039078,120]
[393424425,1762648652749,500.0,0.00039078,120]
[393424426,1762648652987,500.0,0.00039078,120]
[393424427,1762648653232,500.0,0.00039078,120]
[393424428,1762648653447,500.0,0.00039078,120]
[393424429,1762648653687,422.2038815,0.00039078,120]
[393424430,1762648654143,500.0,0.00039078,120]
[393424431,1762648654406,561.35,0.00039078,120]
[393424432,1762648656895,500.0,0.00039078,120]
[393424433,1762648657132,500.0,0.00039078,120]
[393424434,1762648657370,500.0,0.00039078,120]
[393424435,1762648657598,352.15495828,0.00039078,120]
[393424436,1762648657875,500.0,0.00039078,120]
[393424437,1762648658113,500.0,0.00039078,120]
[393424438,1762648658356,500.0,0.00039078,120]
[393424439,1762648658711,500.0,0.00039078,120]
[393424440,1762648658936,272.68,0.00039078,120]
[393424441,1762648662731,500.0,0.00039078,120]
[393424442,1762648662963,500.0,0.00039078,120]
[393424443,1762648663202,500.0,0.00039078,120]
[393424444,1762648663430,500.0,0.00039078,120]
[393424445,1762648663672,500.0,0.00039078,120]
[393424446,1762648664093,462.74,0.00039078,120]
[393424447,1762648664259,500.0,0.00039078,120]
[393424448,1762648664510,500.0,0.00039078,120]
[393424449,1762648664747,500.0,0.00039078,120]
[393424450,1762648664990,500.0,0.00039078,120]
[393424451,1762648665273,500.0,0.00039078,120]
[393424452,1762648665307,616.02641217,0.00039078,120]
[393424453,1762648665516,240.44,0.00039078,120]
[393424454,1762648666805,500.0,0.00039078,120]
[393424455,1762648667132,500.0,0.00039078,120]
[393424456,1762648667401,500.0,0.00039078,120]
[393424457,1762648667623,500.0,0.00039078,120]
[393424458,1762648667852,420.53239561,0.00039078,120]
[393424459,1762648668243,500.0,0.00039078,120]
[393424460,1762648668470,500.0,0.00039078,120]
[393424461,1762648668699,380.61185827,0.00039078,120]
[393424462,1762648669077,500.0,0.00039078,120]
[393424463,1762648669305,500.0,0.00039078,120]
[393424464,1762648669548,500.0,0.00039078,120]
[393424465,1762648670505,500.0,0.00039078,120]
[393424466,1762648670788,500.0,0.00039078,120]
[393424467,1762648671026,500.0,0.00039078,120]
[393424468,1762648671385,368.07916286,0.00039078,120]
[393424469,1762648676787,500.0,0.00039078,120]
[393424470,1762648677041,500.0,0.00039078,120]
[393424471,1762648677283,485.2,0.00039078,120]
[393424472,1762648684212,500.0,0.00039078,120]
[393424473,1762648684481,500.0,0.00039078,120]
[393424474,1762648684516,500.0,0.00039078,120]
[393424475,1762648684722,500.0,0.00039078,120]
[393424476,1762648684752,500.0,0.00039078,120]
[393424477,1762648684971,384.73593497,0.00039078,120]
[393424478,1762648685330,409.5943757,0.00039078,120]
[393424479,1762648687722,500.0,0.00039078,120]
[393424480,1762648687963,500.0,0.00039078,120]
[393424481,1762648688213,500.0,0.00039078,120]
[393424482,1762648688477,213.42975225,0.00039078,120]
[393424483,1762648689271,500.0,0.00039078,120]
[393424484,1762648689505,500.0,0.00039078,120]
[393424485,1762648689746,500.0,0.00039078,120]
[393424486,1762648689967,603.33,0.00039078,120]
[393424487,1762648691211,500.0,0.00039078,120]
[393424488,1762648691960,500.0,0.00039078,120]
[393424489,1762648692210,248.36,0.00039078,120]
[393424490,1762648693565,-168.0,0.00016797,2]
[393424491,1762648693586,-79.45682543,0.00016889,2]
[393424492,1762648693608,-195.0,0.00016977,2]
[393424493,1762648693629,-300.0,0.00016977,2]
[393424494,1762648693651,-300.0,0.00016977,2]
[393424495,1762648693672,-396.81380778,0.00017065,2]
[393424496,1762648693694,-168.0,0.00017126,2]
[393424497,1762648693715,-392.72936679,0.00017242,2]
[393424498,1762648697590,500.0,0.00039078,120]
[393424499,1762648697832,500.0,0.00039078,120]
[393424500,1762648698077,251.54,0.00039078,120]
[393424501,1762648698225,587.17678212,0.00039078,120]
[393424502,1762648698937,500.0,0.00039078,120]
[393424503,1762648699189,500.0,0.00039078,120]
[393424504,1762648699443,636.93971165,0.00039078,120]
[393424505,1762648702058,500.0,0.00039078,120]
[393424506,1762648702152,500.0,0.00039078,120]
[393424507,1762648702401,500.0,0.00039078,120]
[393424508,1762648702627,636.10204597,0.00039078,120]
[393424509,1762648709338,500.0,0.00039078,120]
[393424510,1762648709617,500.0,0.00039078,120]
[393424511,1762648709802,639.05691451,0.00039078,120]
[393424512,1762648710028,500.0,0.00039078,120]
[393424513,1762648710268,500.0,0.00039078,120]
[393424514,1762648710529,500.0,0.00039078,120]
[393424515,1762648710911,500.0,0.00039078,120]
[393424516,1762648711138,500.0,0.00039078,120]
[393424517,1762648711372,320.10385338,0.00039078,120]
[393424518,1762648712219,500.0,0.00039078,120]
[393424519,1762648712316,500.0,0.00039078,120]
[393424520,1762648712584,500.0,0.00039078,120]
[393424521,1762648712827,500.0,0.00039078,120]
[393424522,1762648713156,500.0,0.00039078,120]
[393424523,1762648713390,342.92,0.00039078,120]
[393424524,1762648715204,500.0,0.00039078,120]
[393424525,1762648715433,500.0,0.00039078,120]
[393424526,1762648715665,500.0,0.00039078,120]
[393424527,1762648715913,500.0,0.00039078,120]
[393424528,1762648716135,334.68,0.00039078,120]
[393424529,1762648727377,500.0,0.00039078,120]
[393424530,1762648727606,500.0,0.00039078,120]
[393424531,1762648727844,500.0,0.00039078,120]
[393424532,1762648728084,500.0,0.00039078,120]
[393424533,1762648728331,500.0,0.00039078,120]
[393424534,1762648728586,500.0,0.00039078,120]
[393424535,1762648728855,326.91,0.00039078,120]
[393424536,1762648731165,500.0,0.00039078,120]
[393424537,1762648731409,500.0,0.00039078,120]
[393424538,1762648731653,500.0,0.00039078,120]
[393424539,1762648731899,550.47,0.00039078,120]
[393424540,1762648734108,500.0,0.00039078,120]
[393424541,1762648734206,500.0,0.00039078,120]
[393424542,1762648734451,500.0,0.00039078,120]
[393424543,1762648734687,500.0,0.00039078,120]
[393424544,1762648734925,500.0,0.00039078,120]
[393424545,1762648735182,500.0,0.00039078,120]
[393424546,1762648735213,563.83053215,0.00039078,120]
[393424547,1762648735413,500.0,0.00039078,120]
[393424548,1762648735650,152.94,0.00039078,120]
[393424549,1762648736850,500.0,0.00039078,120]
[393424550,1762648737104,500.0,0.00039078,120]
[393424551,1762648737341,500.0,0.00039078,120]
[393424552,1762648737588,500.0,0.00039078,120]
[393424553,1762648737833,500.0,0.00039078,120]
[393424554,1762648738079,500.0,0.00039078,120]
[393424555,1762648738319,441.53,0.00039078,120]
[393424556,1762648740248,500.0,0.00039078,120]
[393424557,1762648740701,500.0,0.00039078,120]
[393424558,1762648740832,500.0,0.00039078,120]
[393424559,1762648740948,500.0,0.00039078,120]
[393424560,1762648741076,500.0,0.00039078,120]
[393424561,1762648741202,230.92439595,0.00039078,120]
[393424562,1762648741313,500.0,0.00039078,120]
[393424563,1762648741592,500.0,0.00039078,120]
[393424564,1762648742098,500.0,0.00039078,120]
[393424565,1762648742275,641.62255433,0.00039078,120]
[393424566,1762648742441,500.0,0.00039078,120]
[393424567,1762648742701,500.0,0.00039078,120]
[393424568,1762648742941,500.0,0.00039078,120]
[393424569,1762648742985,500.0,0.00039078,120]
[393424570,1762648743016,500.0,0.00039078,120]
[393424571,1762648743210,223.1,0.00039078,120]
[393424572,1762648743250,500.0,0.00039078,120]
[393424573,1762648743281,500.0,0.00039078,120]
[393424574,1762648743510,500.0,0.00039078,120]
[393424575,1762648743542,500.0,0.00039078,120]
[393424576,1762648743741,500.0,0.00039078,120]
[393424577,1762648743776,629.77261955,0.00039078,120]
[393424578,1762648743993,500.0,0.00039078,120]
[393424579,1762648744304,500.0,0.00039078,120]
[393424580,1762648744473,620.98477227,0.00039078,120]
[393424581,1762648745393,500.0,0.00039078,120]
[393424582,1762648745639,500.0,0.00039078,120]
[393424583,1762648745893,261.86188348,0.00039078,120]
[393424584,1762648748134,500.0,0.00039078,120]
[393424585,1762648748366,500.0,0.00039078,120]
[393424586,1762648748589,500.0,0.00039078,120]
[393424587,1762648749034,500.0,0.00039078,120]
[393424588,1762648749097,426.41,0.00039078,120]